[Event "*** Titled Tuesday Blitz"]
[Site "Chess.com"]
[Date "2018.07.03"]
[Round "3"]
[White "gemarin"]
[Black "BillForster"]
[Result "1-0"]
[WhiteElo "1830"]
[BlackElo "1701"]
[TimeControl "180+2"]
[EndTime "13:33:20 PDT"]
[Termination "gemarin won by resignation"]

1. d4 {[%clk 0:00:44.8]} 1... d5 {[%clk 0:02:58.4]} 2. c4 {[%clk 0:00:46.4]}
2... c6 {[%clk 0:02:58.6]} 3. Nc3 {[%clk 0:00:46.7]} 3... Nf6 {[%clk 0:02:58.7]}
4. Nf3 {[%clk 0:00:46.5]} 4... e6 {[%clk 0:02:59.5]} 5. cxd5 {[%clk 0:00:44.5]}
5... exd5 {[%clk 0:02:55.8]} 6. Bf4 {[%clk 0:00:45.5]} 6... Bf5 {[%clk
0:02:40.6]} 7. e3 {[%clk 0:00:46.5]} 7... Bd6 {[%clk 0:02:30.9]} 8. Qb3 {[%clk
0:00:42.7]} 8... b6 {[%clk 0:02:18.5]} 9. Ne5 {[%clk 0:00:41]} 9... O-O {[%clk
0:02:14.2]} 10. Be2 {[%clk 0:00:41.2]} 10... Nfd7 {[%clk 0:02:04.1]} 11. Nxc6
{[%clk 0:00:36.9]} 11... Qc7 {[%clk 0:01:33.7]} 12. Ne7+ {[%clk 0:00:31.5]}
12... Kh8 {[%clk 0:01:30]} 13. Bxd6 {[%clk 0:00:31.3]} 13... Qxd6 {[%clk
0:01:29.7]} 14. Nxf5 {[%clk 0:00:31.9]} 14... Nc6 {[%clk 0:01:22.8]} 15. Nxd6
{[%clk 0:00:31.4]} 1-0

[Event "*** Titled Tuesday Blitz"]
[Site "Chess.com"]
[Date "2018.07.03"]
[Round "3"]
[White "dretch"]
[Black "Last7Samurai"]
[Result "1-0"]
[WhiteElo "2763"]
[BlackElo "2603"]
[TimeControl "180+2"]
[EndTime "13:33:51 PDT"]
[Termination "dretch won by resignation"]

1. d4 {[%clk 0:03:01.9]} 1... d5 {[%clk 0:03:00.4]} 2. c4 {[%clk 0:03:00.1]}
2... c6 {[%clk 0:03:01.3]} 3. Nf3 {[%clk 0:03:00.5]} 3... Nf6 {[%clk 0:03:02.2]}
4. Nc3 {[%clk 0:02:59.5]} 4... e6 {[%clk 0:03:03.1]} 5. Bg5 {[%clk 0:02:58.5]}
5... dxc4 {[%clk 0:03:03.7]} 6. e4 {[%clk 0:02:59.3]} 6... b5 {[%clk 0:03:04.2]}
7. e5 {[%clk 0:02:59.9]} 7... h6 {[%clk 0:03:05.4]} 8. Bh4 {[%clk 0:03:01.3]}
8... g5 {[%clk 0:03:06.6]} 9. Nxg5 {[%clk 0:03:02.8]} 9... hxg5 {[%clk
0:03:08.5]} 10. Bxg5 {[%clk 0:03:04.7]} 10... Be7 {[%clk 0:03:09.8]} 11. exf6
{[%clk 0:03:03.8]} 11... Bxf6 {[%clk 0:03:11.7]} 12. Bxf6 {[%clk 0:03:04.9]}
12... Qxf6 {[%clk 0:03:13.6]} 13. a4 {[%clk 0:03:05.9]} 13... Rh4 {[%clk
0:02:36.2]} 14. g4 {[%clk 0:03:06.2]} 14... Bb7 {[%clk 0:02:31.1]} 15. Bg2
{[%clk 0:03:04.8]} 15... a6 {[%clk 0:02:27]} 16. Ne4 {[%clk 0:02:55.2]} 16...
Qe7 {[%clk 0:02:24.7]} 17. Nc5 {[%clk 0:02:52.7]} 17... b4 {[%clk 0:02:02]} 18.
O-O {[%clk 0:02:45.5]} 18... a5 {[%clk 0:01:59.8]} 19. Rc1 {[%clk 0:02:43.7]}
19... Na6 {[%clk 0:01:53.2]} 20. Nxb7 {[%clk 0:02:43.4]} 20... Qxb7 {[%clk
0:01:55.1]} 21. Rxc4 {[%clk 0:02:44.6]} 21... Rc8 {[%clk 0:01:52.8]} 22. Qf3
{[%clk 0:02:45]} 22... Nb8 {[%clk 0:01:50.8]} 23. h3 {[%clk 0:02:44.7]} 23...
Qe7 {[%clk 0:01:46.8]} 24. Re1 {[%clk 0:02:43.3]} 24... Kf8 {[%clk 0:01:46.6]}
25. Rc5 {[%clk 0:02:41.3]} 25... Qd6 {[%clk 0:01:35.8]} 26. Rxa5 {[%clk
0:02:35.4]} 26... Qxd4 {[%clk 0:01:33.3]} 27. Ra8 {[%clk 0:02:34.8]} 27... Rh6
{[%clk 0:01:12.3]} 28. Qe3 {[%clk 0:02:26.4]} 28... c5 {[%clk 0:01:05.2]} 29.
Qxd4 {[%clk 0:02:23]} 29... cxd4 {[%clk 0:01:05.6]} 30. a5 {[%clk 0:02:22.1]}
30... d3 {[%clk 0:00:57.1]} 31. Rd1 {[%clk 0:02:21]} 31... e5 {[%clk 0:00:42.8]}
32. Rxd3 {[%clk 0:02:19.1]} 32... Ra6 {[%clk 0:00:38.6]} 33. Rxa6 {[%clk
0:02:15.7]} 33... Nxa6 {[%clk 0:00:40.5]} 34. Rd6 {[%clk 0:02:17.1]} 34... Rc1+
{[%clk 0:00:34.8]} 35. Kh2 {[%clk 0:02:17.6]} 35... Nc5 {[%clk 0:00:36.4]} 36.
Rc6 {[%clk 0:02:17]} 1-0

[Event "*** Titled Tuesday Blitz"]
[Site "Chess.com"]
[Date "2018.07.03"]
[Round "3"]
[White "Mbneu"]
[Black "Arman_Hakemi"]
[Result "1-0"]
[WhiteElo "2236"]
[BlackElo "2283"]
[TimeControl "180+2"]
[EndTime "13:33:53 PDT"]
[Termination "Mbneu won by resignation"]

1. d4 {[%clk 0:03:01.9]} 1... Nf6 {[%clk 0:02:49.6]} 2. c4 {[%clk 0:03:02.3]}
2... g6 {[%clk 0:02:47.3]} 3. Nc3 {[%clk 0:03:02.6]} 3... Bg7 {[%clk 0:02:47.2]}
4. e4 {[%clk 0:03:03]} 4... d6 {[%clk 0:02:47.6]} 5. f4 {[%clk 0:03:04.5]} 5...
O-O {[%clk 0:02:44.1]} 6. Nf3 {[%clk 0:03:05.9]} 6... Na6 {[%clk 0:02:40.6]} 7.
e5 {[%clk 0:03:02.8]} 7... Ne8 {[%clk 0:02:40.3]} 8. Bd3 {[%clk 0:03:02.8]} 8...
c5 {[%clk 0:02:39.4]} 9. d5 {[%clk 0:03:03.4]} 9... Bg4 {[%clk 0:02:38.1]} 10.
Qe2 {[%clk 0:02:57.9]} 10... e6 {[%clk 0:02:34.8]} 11. O-O {[%clk 0:02:49.7]}
11... exd5 {[%clk 0:02:35.1]} 12. Nxd5 {[%clk 0:02:50.1]} 12... Nac7 {[%clk
0:02:34.8]} 13. Be4 {[%clk 0:02:35]} 13... Ne6 {[%clk 0:02:33.6]} 14. Qd3 {[%clk
0:02:28]} 14... Bxf3 {[%clk 0:02:26.5]} 15. Rxf3 {[%clk 0:02:27.9]} 15... dxe5
{[%clk 0:02:27.7]} 16. f5 {[%clk 0:02:29]} 16... Nd4 {[%clk 0:02:23.6]} 17. Rg3
{[%clk 0:02:11.8]} 17... Kh8 {[%clk 0:02:18.1]} 18. fxg6 {[%clk 0:01:56.9]}
18... f6 {[%clk 0:02:19]} 19. gxh7 {[%clk 0:01:54.6]} 19... f5 {[%clk 0:02:20]}
20. Bg5 {[%clk 0:01:43.3]} 20... fxe4 {[%clk 0:02:19.2]} 21. Qxe4 {[%clk
0:01:42.4]} 21... Qd6 {[%clk 0:02:17]} 22. Be7 {[%clk 0:01:41.1]} 22... Qe6
{[%clk 0:01:31.1]} 23. Bxf8 {[%clk 0:01:40.2]} 23... Nf5 {[%clk 0:01:32.4]} 24.
Bxg7+ {[%clk 0:01:30.1]} 24... Nexg7 {[%clk 0:01:32.6]} 25. Rg5 {[%clk
0:01:31.2]} 25... Nd4 {[%clk 0:01:32.4]} 26. Rxe5 {[%clk 0:01:30.9]} 26... Qf6
{[%clk 0:01:31.5]} 27. Rf1 {[%clk 0:01:30.9]} 27... Qh6 {[%clk 0:01:27.3]} 28.
Ne7 {[%clk 0:01:30.8]} 28... Qxh7 {[%clk 0:01:09.9]} 29. Ng6+ {[%clk 0:01:26.2]}
29... Kg8 {[%clk 0:01:11]} 30. Qd5+ {[%clk 0:01:27]} 30... Nge6 {[%clk
0:01:12.1]} 31. Rxe6 {[%clk 0:01:28.1]} 1-0

[Event "*** Titled Tuesday Blitz"]
[Site "Chess.com"]
[Date "2018.07.03"]
[Round "3"]
[White "MatthewG-p4p"]
[Black "Kurai"]
[Result "1-0"]
[WhiteElo "2687"]
[BlackElo "2450"]
[TimeControl "180+2"]
[EndTime "13:33:54 PDT"]
[Termination "MatthewG-p4p won by resignation"]

1. c4 {[%clk 0:02:58.9]} 1... e6 {[%clk 0:03:00.8]} 2. Nf3 {[%clk 0:02:59.1]}
2... d5 {[%clk 0:03:02.1]} 3. d4 {[%clk 0:02:58.6]} 3... Nf6 {[%clk 0:03:03.3]}
4. Nc3 {[%clk 0:02:59.7]} 4... Be7 {[%clk 0:03:01.9]} 5. e3 {[%clk 0:02:58]}
5... O-O {[%clk 0:02:59.8]} 6. Bd3 {[%clk 0:02:57.9]} 6... b6 {[%clk 0:03:00.1]}
7. O-O {[%clk 0:02:58.2]} 7... Bb7 {[%clk 0:03:00.2]} 8. Qe2 {[%clk 0:02:52.7]}
8... c5 {[%clk 0:03:01]} 9. dxc5 {[%clk 0:02:51]} 9... bxc5 {[%clk 0:03:01.4]}
10. Rd1 {[%clk 0:02:52]} 10... Nbd7 {[%clk 0:02:45.1]} 11. b3 {[%clk 0:02:50.5]}
11... Re8 {[%clk 0:02:40.8]} 12. Bb2 {[%clk 0:02:51.5]} 12... Nf8 {[%clk
0:02:24]} 13. Rac1 {[%clk 0:02:43.2]} 13... Rc8 {[%clk 0:02:14]} 14. cxd5 {[%clk
0:02:43.4]} 14... exd5 {[%clk 0:02:14.7]} 15. Bb5 {[%clk 0:02:44.3]} 15... N8d7
{[%clk 0:02:00.3]} 16. Qd3 {[%clk 0:02:24.4]} 16... Bd6 {[%clk 0:01:45.3]} 17.
Qf5 {[%clk 0:02:18.8]} 17... g6 {[%clk 0:01:45]} 18. Qg5 {[%clk 0:02:17.5]}
18... d4 {[%clk 0:01:25.9]} 19. exd4 {[%clk 0:02:01.7]} 19... Bxf3 {[%clk
0:01:26.1]} 20. gxf3 {[%clk 0:02:02.8]} 20... cxd4 {[%clk 0:01:26.8]} 21. Rxd4
{[%clk 0:02:02.6]} 21... Re5 {[%clk 0:01:26.3]} 22. Qd2 {[%clk 0:02:00.2]} 22...
Bc5 {[%clk 0:00:50.9]} 23. Rxd7 {[%clk 0:01:54.4]} 23... Nxd7 {[%clk 0:00:47.3]}
24. Qxd7 {[%clk 0:01:56.3]} 24... Qxd7 {[%clk 0:00:21.5]} 25. Bxd7 {[%clk
0:01:58.2]} 25... Rd8 {[%clk 0:00:23]} 26. Ne4 {[%clk 0:01:57.9]} 1-0

[Event "*** Titled Tuesday Blitz"]
[Site "Chess.com"]
[Date "2018.07.03"]
[Round "3"]
[White "Mikhail_Antipov"]
[Black "jacky72"]
[Result "1-0"]
[WhiteElo "2836"]
[BlackElo "2631"]
[TimeControl "180+2"]
[EndTime "13:33:57 PDT"]
[Termination "Mikhail_Antipov won by checkmate"]

1. e4 {[%clk 0:03:00.8]} 1... e5 {[%clk 0:03:00.9]} 2. Nf3 {[%clk 0:03:01.5]}
2... Nc6 {[%clk 0:02:59.6]} 3. d4 {[%clk 0:03:01.3]} 3... exd4 {[%clk
0:03:00.5]} 4. Nxd4 {[%clk 0:03:03.2]} 4... Nf6 {[%clk 0:03:01.9]} 5. Nxc6
{[%clk 0:03:03.2]} 5... bxc6 {[%clk 0:03:03.8]} 6. e5 {[%clk 0:03:04.2]} 6...
Qe7 {[%clk 0:03:05.1]} 7. Qe2 {[%clk 0:03:05.2]} 7... Nd5 {[%clk 0:03:06.5]} 8.
g3 {[%clk 0:03:06.5]} 8... a5 {[%clk 0:03:06.5]} 9. c4 {[%clk 0:02:55.4]} 9...
Nb6 {[%clk 0:03:07.2]} 10. b3 {[%clk 0:02:36.4]} 10... Qe6 {[%clk 0:03:03.2]}
11. Nd2 {[%clk 0:02:16]} 11... a4 {[%clk 0:03:01.2]} 12. Bb2 {[%clk 0:02:00.8]}
12... Bb4 {[%clk 0:02:59.4]} 13. Bg2 {[%clk 0:02:00.4]} 13... a3 {[%clk
0:02:57.6]} 14. Bd4 {[%clk 0:01:58.9]} 14... O-O {[%clk 0:02:58.5]} 15. O-O
{[%clk 0:01:23.2]} 15... Ba6 {[%clk 0:02:58.2]} 16. f4 {[%clk 0:01:01.2]} 16...
f6 {[%clk 0:02:45.1]} 17. f5 {[%clk 0:00:55.2]} 17... Qe7 {[%clk 0:02:42.4]} 18.
Rae1 {[%clk 0:00:24.5]} 18... Rae8 {[%clk 0:02:38.7]} 19. Qf2 {[%clk 0:00:21.4]}
19... c5 {[%clk 0:02:37.2]} 20. Ba1 {[%clk 0:00:22.1]} 20... fxe5 {[%clk
0:02:36]} 21. Rxe5 {[%clk 0:00:22.3]} 21... Qf7 {[%clk 0:02:33]} 22. Nf3 {[%clk
0:00:23]} 22... h6 {[%clk 0:02:16.4]} 23. g4 {[%clk 0:00:13.2]} 23... d6 {[%clk
0:02:14.3]} 24. Rxe8 {[%clk 0:00:12.1]} 24... Rxe8 {[%clk 0:02:16.2]} 25. g5
{[%clk 0:00:12.9]} 25... hxg5 {[%clk 0:02:11.6]} 26. Nxg5 {[%clk 0:00:14.8]}
26... Qh5 {[%clk 0:02:13.4]} 27. f6 {[%clk 0:00:14.4]} 27... Rf8 {[%clk
0:02:07.8]} 28. f7+ {[%clk 0:00:10.9]} 28... Kh8 {[%clk 0:02:09.1]} 29. Bxg7+
{[%clk 0:00:09.8]} 29... Kxg7 {[%clk 0:02:06.6]} 30. Qf6# {[%clk 0:00:11.7]} 1-0

[Event "*** Titled Tuesday Blitz"]
[Site "Chess.com"]
[Date "2018.07.03"]
[Round "3"]
[White "Bryakin_Mikhail"]
[Black "grandmastergauri"]
[Result "1-0"]
[WhiteElo "2622"]
[BlackElo "2485"]
[TimeControl "180+2"]
[EndTime "13:34:14 PDT"]
[Termination "Bryakin_Mikhail won by resignation"]

1. d4 {[%clk 0:02:55.4]} 1... Nf6 {[%clk 0:03:00.2]} 2. c4 {[%clk 0:02:55.6]}
2... e6 {[%clk 0:03:00.9]} 3. g3 {[%clk 0:02:54.5]} 3... d5 {[%clk 0:02:59.8]}
4. Bg2 {[%clk 0:02:54.8]} 4... Bb4+ {[%clk 0:03:00.8]} 5. Bd2 {[%clk 0:02:49.5]}
5... Bd6 {[%clk 0:03:01.7]} 6. Qc2 {[%clk 0:02:50.5]} 6... c6 {[%clk 0:02:57.4]}
7. Nc3 {[%clk 0:02:51.2]} 7... Nbd7 {[%clk 0:02:55.4]} 8. f4 {[%clk 0:02:41.9]}
8... O-O {[%clk 0:02:42.3]} 9. Nf3 {[%clk 0:02:40.1]} 9... c5 {[%clk 0:02:41.5]}
10. cxd5 {[%clk 0:02:38.7]} 10... exd5 {[%clk 0:02:41.3]} 11. e3 {[%clk
0:02:39.8]} 11... cxd4 {[%clk 0:02:23.3]} 12. exd4 {[%clk 0:02:41.7]} 12... Ne4
{[%clk 0:01:39.3]} 13. O-O {[%clk 0:02:36]} 13... Nxc3 {[%clk 0:01:35.1]} 14.
Bxc3 {[%clk 0:02:37.9]} 14... Nb6 {[%clk 0:01:29.5]} 15. Rae1 {[%clk 0:02:34.6]}
15... g6 {[%clk 0:01:28.3]} 16. Ne5 {[%clk 0:02:30.9]} 16... Bf5 {[%clk
0:01:27.1]} 17. Qb3 {[%clk 0:02:31.7]} 17... Kg7 {[%clk 0:00:43.8]} 18. g4
{[%clk 0:02:23.4]} 18... Bxe5 {[%clk 0:00:29.5]} 19. dxe5 {[%clk 0:02:23]} 19...
Bxg4 {[%clk 0:00:30.1]} 20. e6+ {[%clk 0:02:23.9]} 20... f6 {[%clk 0:00:17.2]}
21. e7 {[%clk 0:02:24.9]} 21... Qc7 {[%clk 0:00:17.3]} 22. exf8=Q+ {[%clk
0:02:23.7]} 22... Rxf8 {[%clk 0:00:19.2]} 23. Bb4 {[%clk 0:02:17.2]} 23... Rf7
{[%clk 0:00:19.7]} 24. Bxd5 {[%clk 0:02:17.5]} 24... Nxd5 {[%clk 0:00:17.5]} 25.
Qxd5 {[%clk 0:02:19.4]} 25... Bh3 {[%clk 0:00:19]} 26. Rf3 {[%clk 0:02:15.5]}
26... Bg4 {[%clk 0:00:16.4]} 27. Rfe3 {[%clk 0:02:16.4]} 27... Qb6 {[%clk
0:00:16.9]} 28. Bc5 {[%clk 0:02:16.6]} 28... Qxb2 {[%clk 0:00:17.8]} 29. Qxf7+
{[%clk 0:01:59.8]} 29... Kxf7 {[%clk 0:00:15.4]} 30. Re7+ {[%clk 0:02:01.1]}
30... Kg8 {[%clk 0:00:15.5]} 31. Re8+ {[%clk 0:02:01.1]} 31... Kg7 {[%clk
0:00:15.6]} 32. Bf8+ {[%clk 0:02:02.5]} 1-0

[Event "*** Titled Tuesday Blitz"]
[Site "Chess.com"]
[Date "2018.07.03"]
[Round "3"]
[White "Godzillator"]
[Black "canwedoit"]
[Result "1-0"]
[WhiteElo "2349"]
[BlackElo "2530"]
[TimeControl "180+2"]
[EndTime "13:34:16 PDT"]
[Termination "Godzillator won by resignation"]

1. d4 {[%clk 0:03:01.9]} 1... d5 {[%clk 0:03:00.1]} 2. c4 {[%clk 0:03:03.1]}
2... c6 {[%clk 0:03:01.3]} 3. cxd5 {[%clk 0:03:04.4]} 3... cxd5 {[%clk
0:03:03.2]} 4. Bf4 {[%clk 0:03:05.3]} 4... Nf6 {[%clk 0:03:03]} 5. Nc3 {[%clk
0:03:06.3]} 5... Nc6 {[%clk 0:03:04.3]} 6. e3 {[%clk 0:03:07.6]} 6... a6 {[%clk
0:03:05.2]} 7. Bd3 {[%clk 0:03:08.1]} 7... Bg4 {[%clk 0:03:03.9]} 8. Nge2 {[%clk
0:03:09.2]} 8... e6 {[%clk 0:03:02.5]} 9. O-O {[%clk 0:03:10.1]} 9... Be7 {[%clk
0:03:02.3]} 10. Rc1 {[%clk 0:03:11.1]} 10... O-O {[%clk 0:03:02.8]} 11. a3
{[%clk 0:03:12.3]} 11... Rc8 {[%clk 0:03:03.5]} 12. Na4 {[%clk 0:03:12.3]} 12...
Nd7 {[%clk 0:02:58.5]} 13. b4 {[%clk 0:03:11.9]} 13... b5 {[%clk 0:02:29.4]} 14.
Nc5 {[%clk 0:03:12.2]} 14... Nxc5 {[%clk 0:02:23.8]} 15. dxc5 {[%clk 0:03:07.9]}
15... e5 {[%clk 0:02:24.9]} 16. Bg3 {[%clk 0:03:08.6]} 16... f5 {[%clk
0:02:17.5]} 17. f3 {[%clk 0:03:01.4]} 17... Bh5 {[%clk 0:02:18]} 18. Qb3 {[%clk
0:03:01.1]} 18... Bf7 {[%clk 0:02:14.1]} 19. Qb1 {[%clk 0:03:00.1]} 19... g6
{[%clk 0:02:06.3]} 20. Rfd1 {[%clk 0:03:00.3]} 20... Qc7 {[%clk 0:02:00.2]} 21.
a4 {[%clk 0:02:38.6]} 21... Qb7 {[%clk 0:02:01.1]} 22. axb5 {[%clk 0:02:39.4]}
22... axb5 {[%clk 0:02:03]} 23. Nc3 {[%clk 0:02:37]} 23... d4 {[%clk 0:01:53.3]}
24. exd4 {[%clk 0:02:30.9]} 24... f4 {[%clk 0:01:43.7]} 25. Bf2 {[%clk
0:02:28.9]} 25... Nxd4 {[%clk 0:01:25]} 26. Bxd4 {[%clk 0:02:28.3]} 26... exd4
{[%clk 0:01:26.9]} 27. Nxb5 {[%clk 0:02:28.8]} 27... Rfd8 {[%clk 0:01:26.6]} 28.
Qb2 {[%clk 0:02:07.2]} 28... Qd5 {[%clk 0:01:23.1]} 29. Bc4 {[%clk 0:02:05.7]}
29... Qf5 {[%clk 0:01:22.4]} 30. Bxf7+ {[%clk 0:02:06.1]} 30... Qxf7 {[%clk
0:01:23.5]} 31. Nxd4 {[%clk 0:02:02.9]} 31... Bf6 {[%clk 0:01:24.8]} 32. Qf2
{[%clk 0:02:03.1]} 32... Qb7 {[%clk 0:01:24.1]} 33. Rb1 {[%clk 0:01:53.1]} 33...
Rxc5 {[%clk 0:01:07.8]} 34. bxc5 {[%clk 0:01:48.3]} 34... Bxd4 {[%clk
0:01:09.2]} 35. Rxb7 {[%clk 0:01:35.7]} 35... Bxf2+ {[%clk 0:01:10.7]} 36. Kxf2
{[%clk 0:01:36.8]} 36... Rxd1 {[%clk 0:01:12.6]} 37. c6 {[%clk 0:01:37.9]} 37...
Rc1 {[%clk 0:01:13.9]} 38. c7 {[%clk 0:01:37.5]} 38... Rc2+ {[%clk 0:01:09.5]}
39. Ke1 {[%clk 0:01:37.8]} 39... Kg7 {[%clk 0:00:58.1]} 40. c8=Q+ {[%clk
0:01:37.2]} 1-0

[Event "*** Titled Tuesday Blitz"]
[Site "Chess.com"]
[Date "2018.07.03"]
[Round "3"]
[White "Swarnapuri"]
[Black "nurmiTV"]
[Result "1-0"]
[WhiteElo "2567"]
[BlackElo "2507"]
[TimeControl "180+2"]
[EndTime "13:34:24 PDT"]
[Termination "Swarnapuri won on time"]

1. d4 {[%clk 0:03:01.2]} 1... Nf6 {[%clk 0:02:58.7]} 2. Bf4 {[%clk 0:03:02]}
2... d5 {[%clk 0:02:56.9]} 3. e3 {[%clk 0:03:02.7]} 3... c5 {[%clk 0:02:57.3]}
4. c3 {[%clk 0:03:03.5]} 4... Qb6 {[%clk 0:02:57.3]} 5. Qb3 {[%clk 0:03:02.7]}
5... Nc6 {[%clk 0:02:54.4]} 6. Nd2 {[%clk 0:03:02.7]} 6... c4 {[%clk 0:02:48.8]}
7. Qc2 {[%clk 0:03:03.6]} 7... g6 {[%clk 0:02:48.4]} 8. e4 {[%clk 0:03:04.7]}
8... e6 {[%clk 0:02:35.2]} 9. Ngf3 {[%clk 0:03:03.2]} 9... Bg7 {[%clk
0:02:34.7]} 10. Bd6 {[%clk 0:03:03.7]} 10... Nxe4 {[%clk 0:01:36.2]} 11. Nxe4
{[%clk 0:02:57]} 11... dxe4 {[%clk 0:01:38.1]} 12. Bc5 {[%clk 0:02:51.5]} 12...
Qb5 {[%clk 0:01:29.5]} 13. Nd2 {[%clk 0:02:49.2]} 13... Qa5 {[%clk 0:00:59.1]}
14. Nxc4 {[%clk 0:02:46]} 14... Qc7 {[%clk 0:00:59.4]} 15. Nd6+ {[%clk 0:02:24]}
15... Kd8 {[%clk 0:00:57.4]} 16. Qxe4 {[%clk 0:02:19]} 16... e5 {[%clk
0:00:37.1]} 17. Bc4 {[%clk 0:02:12.8]} 17... Rf8 {[%clk 0:00:33.4]} 18. Nxc8
{[%clk 0:02:10.9]} 18... Rxc8 {[%clk 0:00:28.5]} 19. Bxf8 {[%clk 0:02:11.7]}
19... Bxf8 {[%clk 0:00:27.8]} 20. O-O {[%clk 0:02:10.1]} 20... exd4 {[%clk
0:00:28.6]} 21. Rfe1 {[%clk 0:02:09.9]} 21... Qd7 {[%clk 0:00:21.6]} 22. Rad1
{[%clk 0:02:07.9]} 22... Bd6 {[%clk 0:00:20.6]} 23. Bb5 {[%clk 0:02:05.9]} 23...
dxc3 {[%clk 0:00:17.4]} 24. bxc3 {[%clk 0:02:02.3]} 24... a6 {[%clk 0:00:18.7]}
25. Ba4 {[%clk 0:01:55.8]} 25... b5 {[%clk 0:00:10.9]} 26. Bb3 {[%clk
0:01:56.8]} 26... Kc7 {[%clk 0:00:12.7]} 27. c4 {[%clk 0:01:53.9]} 27... Qe7
{[%clk 0:00:08.7]} 28. c5 {[%clk 0:01:49.3]} 28... Bxc5 {[%clk 0:00:06.8]} 29.
Qf4+ {[%clk 0:01:50.7]} 1-0

[Event "*** Titled Tuesday Blitz"]
[Site "Chess.com"]
[Date "2018.07.03"]
[Round "3"]
[White "OparinGrigoriy"]
[Black "EndgameGrinder"]
[Result "1-0"]
[WhiteElo "2890"]
[BlackElo "2457"]
[TimeControl "180+2"]
[EndTime "13:34:28 PDT"]
[Termination "OparinGrigoriy won by resignation"]

1. Nf3 {[%clk 0:03:01.9]} 1... c5 {[%clk 0:03:00.5]} 2. c4 {[%clk 0:03:01.1]}
2... Nc6 {[%clk 0:03:01.6]} 3. Nc3 {[%clk 0:03:03]} 3... g6 {[%clk 0:03:00.9]}
4. d4 {[%clk 0:02:57.2]} 4... cxd4 {[%clk 0:03:01.2]} 5. Nxd4 {[%clk 0:02:59.1]}
5... Bg7 {[%clk 0:03:02.6]} 6. e3 {[%clk 0:02:57.9]} 6... Nf6 {[%clk 0:03:00.9]}
7. Be2 {[%clk 0:02:57.2]} 7... Nxd4 {[%clk 0:02:55.8]} 8. exd4 {[%clk
0:02:57.1]} 8... d5 {[%clk 0:02:56.6]} 9. c5 {[%clk 0:02:54.9]} 9... O-O {[%clk
0:02:56.9]} 10. O-O {[%clk 0:02:55.4]} 10... Bf5 {[%clk 0:02:39.6]} 11. b4
{[%clk 0:02:55.1]} 11... Ne4 {[%clk 0:02:39.1]} 12. Nxe4 {[%clk 0:02:54.7]}
12... Bxe4 {[%clk 0:02:41]} 13. Be3 {[%clk 0:02:55]} 13... f6 {[%clk 0:02:36.1]}
14. Qd2 {[%clk 0:02:52]} 14... Qd7 {[%clk 0:02:26.9]} 15. b5 {[%clk 0:02:52.2]}
15... e5 {[%clk 0:02:21.7]} 16. a4 {[%clk 0:02:50.9]} 16... f5 {[%clk
0:01:48.6]} 17. dxe5 {[%clk 0:02:50.2]} 17... Bxe5 {[%clk 0:01:41.4]} 18. Bd4
{[%clk 0:02:50.6]} 18... Bxd4 {[%clk 0:01:39.1]} 19. Qxd4 {[%clk 0:02:52.5]}
19... f4 {[%clk 0:01:40.4]} 20. f3 {[%clk 0:02:52.9]} 20... Bf5 {[%clk
0:01:41.4]} 21. Rfd1 {[%clk 0:02:53.2]} 21... Be6 {[%clk 0:01:35.1]} 22. Rac1
{[%clk 0:02:53.2]} 22... Rac8 {[%clk 0:01:29]} 23. a5 {[%clk 0:02:49.4]} 23...
Qg7 {[%clk 0:01:10.4]} 24. Qxg7+ {[%clk 0:02:43.4]} 24... Kxg7 {[%clk
0:01:12.3]} 25. b6 {[%clk 0:02:44.9]} 25... axb6 {[%clk 0:01:05.3]} 26. cxb6
{[%clk 0:02:46.8]} 26... Kf6 {[%clk 0:01:03.3]} 27. Kf2 {[%clk 0:02:47.1]} 27...
Ke5 {[%clk 0:01:03.8]} 28. a6 {[%clk 0:02:45.4]} 28... bxa6 {[%clk 0:01:02.5]}
29. Bxa6 {[%clk 0:02:47.3]} 29... Rb8 {[%clk 0:01:00.2]} 30. b7 {[%clk 0:02:48]}
30... Rf7 {[%clk 0:00:57.3]} 31. Rc6 {[%clk 0:02:46.4]} 31... Bd7 {[%clk
0:00:36.5]} 32. Rc8 {[%clk 0:02:42.8]} 32... Rf8 {[%clk 0:00:28.3]} 33. Rxf8
{[%clk 0:02:37.9]} 33... Rxf8 {[%clk 0:00:28.3]} 34. Rc1 {[%clk 0:02:39.3]}
34... Kd4 {[%clk 0:00:11.1]} 35. Rc8 {[%clk 0:02:40.2]} 35... Bxc8 {[%clk
0:00:11.7]} 36. bxc8=Q {[%clk 0:02:42.1]} 36... Rxc8 {[%clk 0:00:12.8]} 37. Bxc8
{[%clk 0:02:44]} 37... Kc3 {[%clk 0:00:14.3]} 38. Ke2 {[%clk 0:02:45.3]} 38...
d4 {[%clk 0:00:15.1]} 39. Ba6 {[%clk 0:02:47.2]} 39... g5 {[%clk 0:00:15.9]} 40.
Bd3 {[%clk 0:02:46.5]} 40... h6 {[%clk 0:00:16.9]} 41. Bg6 {[%clk 0:02:46.1]}
41... Kc4 {[%clk 0:00:16.8]} 42. Kd2 {[%clk 0:02:47.3]} 42... Kc5 {[%clk
0:00:16]} 43. Kd3 {[%clk 0:02:49.2]} 43... Kd5 {[%clk 0:00:17.4]} 44. Bh7 {[%clk
0:02:50.6]} 44... Ke5 {[%clk 0:00:18.8]} 45. Be4 {[%clk 0:02:51.2]} 45... h5
{[%clk 0:00:20.2]} 46. h3 {[%clk 0:02:52.4]} 46... g4 {[%clk 0:00:18.6]} 47.
fxg4 {[%clk 0:02:52.9]} 47... hxg4 {[%clk 0:00:20.5]} 48. hxg4 {[%clk
0:02:54.7]} 48... Kf6 {[%clk 0:00:21.8]} 49. Bf3 {[%clk 0:02:56.6]} 49... Kg5
{[%clk 0:00:23.2]} 50. Kxd4 {[%clk 0:02:57.8]} 1-0